Workbook

Sheet CC8-Budget
B2: Table 1: Cow-Calf Budget - Eastern Idaho, 250 Cow - 2021 | O2: CCB-CC8-21
B3: Fall Calving - Summer on Private Range & Pasture, Winter Feeding Necessary | L3: No. of Cows: | M3: 250
H5: Total Number
D6: Weight | H6: of Head | J6: Price or | L6: Total | M6: Value or
D7: Each | F7: Unit | H7: or Units | J7: Cost/Unit | L7: Value | M7: Cost/Head | O7: Your Value
C8: GROSS RETURNS | R8: NOTES
C9: Steer Calves | D9: 550 | F9: lbs | H9: 112 | J9: 1.67 | L9: =D9*H9*J9 -> 102872 | M9: =L9/$M$3 -> 411.488 | R9: 250 | S9: Cows
C10: Heifer Calves | D10: 525 | F10: lbs | H10: 70 | J10: 1.62 | L10: =D10*H10*J10 -> 59535 | M10: =L10/$M$3 -> 238.14 | R10: 10 | S10: Bulls
C11: Cull Cows | D11: 1300 | F11: lbs | H11: 38 | J11: 0.67 | L11: =D11*H11*J11 -> 33098 | M11: =L11/$M$3 -> 132.392 | R11: 4 | S11: Horses
C12: Cull Bulls | D12: 1800 | F12: lbs | H12: 3 | J12: 0.88 | L12: =D12*H12*J12 -> 4752 | M12: =L12/$M$3 -> 19.008 | R12: 0.12 | S12: Cow culling rate
C13: Cull Replacement Heifers | D13: 850 | F13: lbs | H13: 5 | J13: 1.12 | L13: =D13*H13*J13 -> 4760 | M13: =L13/$M$3 -> 19.04 | R13: 0.03 | S13: Cow death loss
C14: TOTAL GROSS RETURNS | L14: =SUM(L9:L13) -> 205017 | M14: =SUM(M9:M13) -> 820.068 | R14: 0.9 | S14: Calf crop
R15: 0.116 | S15: Heifer culling rate
C16: OPERATING COSTS
C17: Alfalfa Hay | F17: ton | H17: 65 | J17: 180.25 | L17: =H17*J17 -> 11716.25 | M17: =L17/$M$3 -> 46.865
C18: Alfalfa/Grass Hay | F18: ton | H18: 695 | J18: 145 | L18: 100775 | M18: =L18/$M$3 -> 403.1
C19: Protein Supplement | F19: cwt | H19: 450 | J19: 34 | L19: 15300 | M19: =L19/$M$3 -> 61.2
C20: Private Pasture | F20: AUM | H20: 630 | J20: 30.33 | L20: 19107.9 | M20: =L20/$M$3 -> 76.4316
C21: Private Range | F21: AUM | H21: 1212 | J21: 26 | L21: =H21*J21 -> 31512 | M21: 126.048
C22: Crop Aftermath | F22: AUM | H22: 307 | J22: =18*1.0833 -> 19.4994 | L22: 5986.3158 | M22: 23.9452632
C23: Salt/Mineral | F23: cwt | H23: 55 | J23: 11 | L23: 605 | M23: 2.42
C24: Veterinary/Medicine | F24: $ | H24: 1 | J24: =Vet!W32 -> 6871.956789 | L24: =H24*J24 -> 6871.956789 | M24: 27.48782716
C25: Freight/Trucking | F25: head | H25: 250 | J25: 10 | L25: 2500 | M25: 10
C26: Commission | F26: head | H26: =SUM(H11:H13) -> 46 | J26: =(L11+L12+L13)*0.025/(H11+H12+H13) -> 23.1576087 | L26: =H26*J26 -> 1065.25 | M26: =L26/$M$3 -> 4.261
C27: Checkoff/Brand Inspection | F27: head | H27: =SUM(H9:H13) -> 228 | J27: 2.96 | L27: =H27*J27 -> 674.88 | M27: =L27/$M$3 -> 2.69952
C28: Hired Labor | F28: hour | H28: 625 | J28: 18.19 | L28: 11368.75 | M28: 45.475
C29: Owner Labor | F29: hour | H29: 750 | J29: 31.12 | L29: 23340 | M29: 93.36
C30: Machinery (Fuel, Oil, Repair) | F30: $ | H30: 1 | J30: =3000*(1+42.89%) -> 4286.7 | L30: =H30*J30 -> 4286.7 | M30: =L30/$M$3 -> 17.1468
C31: Vehicles (Fuel, Repair) | F31: $ | H31: 1 | J31: =6800*(1+43.23%) -> 9739.64 | L31: =H31*J31 -> 9739.64 | M31: =L31/$M$3 -> 38.95856
C32: Equipment (Repair) | F32: $ | H32: 1 | J32: =975*(1+6.37%) -> 1037.1075 | L32: =H32*J32 -> 1037.1075 | M32: =L32/$M$3 -> 4.14843
C33: Buildings & Improvements (Repair) | F33: $ | H33: 1 | J33: =2700*(1+6.37%) -> 2871.99 | L33: 2871.99 | M33: 11.48796
C34: Interest on Operating Capital | F34: $ | H34: =SUM(L17:L33)*0.25 -> 62189.68502 | J34: 0.05 | L34: 3109.484251 | M34: 12.437937
C35: TOTAL OPERATING COSTS | L35: =SUM(L17:L34) -> 251868.2243 | M35: 1007.472897
C37: NET RETURNS ABOVE OPERATING COSTS | L37: =L14-L35 -> -46851.22434 | M37: =L37/$M$3 -> -187.4048974
C39: OWNERSHIP COSTS
C40: Capital Recovery:
C41: Purchased Livestock | F41: $ | H41: 1 | J41: =Investment!I25 -> 7801.12 | L41: =H41*J41 -> 7801.12 | M41: =L41/$M$3 -> 31.20448
C42: Buildings & Improvements | F42: $ | H42: 1 | J42: =Investment!I18 -> 8132.5 | L42: =H42*J42 -> 8132.5 | M42: =L42/$M$3 -> 32.53
C43: Machinery | F43: $ | H43: 1 | J43: =Investment!I36 -> 2709 | L43: 2709 | M43: =L43/$M$3 -> 10.836
C44: Equipment | F44: $ | H44: 1 | J44: =Investment!I9+Investment!I12+Investment!I13+Investment!I14+Investment!I15+Investment!I16 -> 1782.5 | L44: 1782.5 | M44: 7.13
C45: Vehicles | F45: $ | H45: 1 | J45: =Investment!I37+Investment!I38+Investment!I39 -> 5595 | L45: 5595 | M45: 22.38
C46: Interest on Retained Livestock | F46: $ | H46: =Investment!D32 -> 426600 | J46: 0.0506 | L46: 21585.96 | M46: 86.34384
C47: Taxes & Insurance | F47: $ | H47: 1 | J47: =Investment!H41+Investment!H18 -> 1026 | L47: 1026 | M47: 4.104
C48: General Overhead | F48: $ | H48: 1 | J48: 5000 | L48: 5000 | M48: 20
C49: TOTAL OWNERSHIP COSTS | L49: =SUM(L41:L48) -> 53632.08 | M49: 214.52832
C51: TOTAL COSTS | L51: =+L35+L49 -> 305500.3043 | M51: =L51/$M$3 -> 1222.001217
C53: NET RETURNS ABOVE TOTAL COSTS | L53: =+L14-L51 -> -100483.3043 | M53: =L53/$M$3 -> -401.9332174

Sheet Monthly Flows
B2: Table 2: Monthly Summary of Returns and Expenses. | P2: CCB-CC8-21
D3: Jan | E3: Feb | F3: Mar | G3: Apr | H3: May | I3: Jun | J3: Jul | K3: Aug | L3: Sep | M3: Oct | N3: Nov | O3: Dec | P3: Value
B5: Production:
C6: Steer Calves | G6: =P6 -> 102872 | P6: ='CC8-Budget'!L9 -> 102872
C7: Heifer Calves | G7: =P7 -> 59535 | P7: ='CC8-Budget'!L10 -> 59535
C8: Cull Cows | H8: =P8 -> 33098 | P8: ='CC8-Budget'!L11 -> 33098
C9: Cull Bulls | E9: =P9 -> 4752 | P9: ='CC8-Budget'!L12 -> 4752
C10: Cull Replacement Heifers | E10: =P10 -> 4760 | P10: ='CC8-Budget'!L13 -> 4760
B12: Total Receipts | D12: =SUM(D6:D10) -> 0 | E12: =SUM(E6:E10) -> 9512 | F12: 0 | G12: 162407 | H12: 33098 | I12: 0 | J12: 0 | K12: 0 | L12: 0 | M12: 0 | N12: 0 | O12: 0 | P12: ='CC8-Budget'!L14 -> 205017
B15: Operating Inputs:
C16: ='CC8-Budget'!C17:D17 -> Alfalfa Hay | D16: =0.2*P16 -> 2343.25 | E16: =0.2*P16 -> 2343.25 | F16: =0.2*P16 -> 2343.25 | G16: =0.2*P16 -> 2343.25 | O16: =0.2*P16 -> 2343.25 | P16: ='CC8-Budget'!L17 -> 11716.25
C17: ='CC8-Budget'!C18:D18 -> Alfalfa/Grass Hay | D17: =0.2*P17 -> 20155 | E17: =0.2*P17 -> 20155 | F17: =0.2*P17 -> 20155 | G17: =0.2*P17 -> 20155 | O17: =0.2*P17 -> 20155 | P17: ='CC8-Budget'!L18 -> 100775
C18: ='CC8-Budget'!C19:D19 -> Protein Supplement | F18: =P18*0.5 -> 7650 | G18: =P18*0.5 -> 7650 | P18: ='CC8-Budget'!L19 -> 15300
C19: ='CC8-Budget'!C20:D20 -> Private Pasture | H19: =P19 -> 19107.9 | P19: ='CC8-Budget'!L20 -> 19107.9
C20: ='CC8-Budget'!C21:D21 -> Private Range | H20: =P20 -> 31512 | P20: ='CC8-Budget'!L21 -> 31512
C21: ='CC8-Budget'!C22:D22 -> Crop Aftermath | L21: =P21 -> 5986.3158 | P21: ='CC8-Budget'!L22 -> 5986.3158
C22: ='CC8-Budget'!C23:D23 -> Salt/Mineral | D22: =$P$22/12 -> 50.41666667 | E22: =$P$22/12 -> 50.41666667 | F22: 50.41666667 | G22: 50.41666667 | H22: 50.41666667 | I22: 50.41666667 | J22: 50.41666667 | K22: 50.41666667 | L22: 50.41666667 | M22: 50.41666667 | N22: 50.41666667 | O22: 50.41666667 | P22: ='CC8-Budget'!L23 -> 605
C23: ='CC8-Budget'!C24:D24 -> Veterinary/Medicine | O23: =P23 -> 6871.956789 | P23: ='CC8-Budget'!L24 -> 6871.956789
C24: ='CC8-Budget'!C25:D25 -> Freight/Trucking | D24: =$P$24/12 -> 208.3333333 | E24: =$P$24/12 -> 208.3333333 | F24: 208.3333333 | G24: 208.3333333 | H24: 208.3333333 | I24: 208.3333333 | J24: 208.3333333 | K24: 208.3333333 | L24: 208.3333333 | M24: 208.3333333 | N24: 208.3333333 | O24: 208.3333333 | P24: ='CC8-Budget'!L25 -> 2500
C25: ='CC8-Budget'!C26:D26 -> Commission | E25: =0.2*P25 -> 213.05 | F25: =0.2*P25 -> 213.05 | N25: =0.6*P25 -> 639.15 | P25: ='CC8-Budget'!L26 -> 1065.25
C26: ='CC8-Budget'!C27:D27 -> Checkoff/Brand Inspection | H26: =0.5*P26 -> 337.44 | L26: =0.5*P26 -> 337.44 | P26: ='CC8-Budget'!L27 -> 674.88
C27: ='CC8-Budget'!C28:D28 -> Hired Labor | D27: =$P$27/12 -> 947.3958333 | E27: =$P$27/12 -> 947.3958333 | F27: 947.3958333 | G27: 947.3958333 | H27: 947.3958333 | I27: 947.3958333 | J27: 947.3958333 | K27: 947.3958333 | L27: 947.3958333 | M27: 947.3958333 | N27: 947.3958333 | O27: 947.3958333 | P27: ='CC8-Budget'!L28 -> 11368.75
C28: ='CC8-Budget'!C29:D29 -> Owner Labor | D28: =$P$28/12 -> 1945 | E28: =$P$28/12 -> 1945 | F28: 1945 | G28: 1945 | H28: 1945 | I28: 1945 | J28: 1945 | K28: 1945 | L28: 1945 | M28: 1945 | N28: 1945 | O28: 1945 | P28: ='CC8-Budget'!L29 -> 23340
C29: ='CC8-Budget'!C30:D30 -> Machinery (Fuel, Oil, Repair) | D29: =0.05*P29 -> 214.335 | E29: =0.15*P29 -> 643.005 | F29: =0.15*P29 -> 643.005 | G29: =0.15*$P$29 -> 643.005 | H29: =0.05*$P$29 -> 214.335 | I29: =0.05*$P$29 -> 214.335 | J29: =0.05*$P$29 -> 214.335 | K29: =0.05*$P$29 -> 214.335 | L29: =0.05*$P$29 -> 214.335 | M29: =0.1*$P$29 -> 428.67 | N29: =0.1*$P$29 -> 428.67 | O29: =0.05*$P$29 -> 214.335 | P29: ='CC8-Budget'!L30 -> 4286.7
C30: ='CC8-Budget'!C31:D31 -> Vehicles (Fuel, Repair) | D30: =$P$30/12 -> 811.6366667 | E30: =$P$30/12 -> 811.6366667 | F30: 811.6366667 | G30: 811.6366667 | H30: 811.6366667 | I30: 811.6366667 | J30: 811.6366667 | K30: 811.6366667 | L30: 811.6366667 | M30: 811.6366667 | N30: 811.6366667 | O30: 811.6366667 | P30: ='CC8-Budget'!L31 -> 9739.64
C31: ='CC8-Budget'!C32:D32 -> Equipment (Repair) | D31: =$P$26/12 -> 56.24 | E31: =$P$26/12 -> 56.24 | F31: 56.24 | G31: 56.24 | H31: 56.24 | I31: 56.24 | J31: 56.24 | K31: 56.24 | L31: 56.24 | M31: 56.24 | N31: 56.24 | O31: 56.24 | P31: ='CC8-Budget'!L32 -> 1037.1075
C32: ='CC8-Budget'!C33:D33 -> Buildings & Improvements (Repair) | D32: =$P$31/12 -> 86.425625 | E32: =$P$31/12 -> 86.425625 | F32: 86.425625 | G32: 86.425625 | H32: 86.425625 | I32: 86.425625 | J32: 86.425625 | K32: 86.425625 | L32: 86.425625 | M32: 86.425625 | N32: 86.425625 | O32: 86.425625 | P32: ='CC8-Budget'!L33 -> 2871.99
C33: ='CC8-Budget'!C34:D34 -> Interest on Operating Capital | D33: =$P$32/12 -> 239.3325 | E33: =$P$32/12 -> 239.3325 | F33: 239.3325 | G33: 239.3325 | H33: 239.3325 | I33: 239.3325 | J33: 239.3325 | K33: 239.3325 | L33: 239.3325 | M33: 239.3325 | N33: 239.3325 | O33: 239.3325 | P33: ='CC8-Budget'!L34 -> 3109.484251
B35: Total Costs | D35: =SUM(D16:D33) -> 27057.36562 | E35: 27699.08562 | F35: 35349.08562 | G35: 35136.03562 | H35: 55516.45562 | I35: 4559.115625 | J35: 4559.115625 | K35: 4559.115625 | L35: 10882.87142 | M35: 4773.450625 | N35: 5412.600625 | O35: 33929.32241 | P35: 251868.2243
B38: Net Returns | D38: =D12-D35 -> -27057.36562 | E38: -18187.08562 | F38: -35349.08562 | G38: 127270.9644 | H38: -22418.45562 | I38: -4559.115625 | J38: -4559.115625 | K38: -4559.115625 | L38: -10882.87142 | M38: -4773.450625 | N38: -5412.600625 | O38: -33929.32241 | P38: -46851.22434
B42: Table 3: Monthly Feed Requirements.
B43: Feed | D43: Units | E43: Jan | F43: Feb | G43: Mar | H43: Apr | I43: May | J43: Jun | K43: Jul | L43: Aug | M43: Sep | N43: Oct | O43: Nov | P43: Dec
B45: Alfalfa Hay
C46: Replacement Heifers | D46: ton | E46: 13 | F46: 13 | G46: 13 | H46: 13 | P46: 13
B47: Alfalfa/Grass Hay
C48: Cows | D48: ton | E48: 132 | F48: 132 | G48: 132 | H48: 132 | P48: 132
C49: Bulls | D49: ton | E49: 5.4 | F49: 5.4 | G49: 5.4 | H49: 5.4 | P49: 5.4
C50: Horses | D50: ton | E50: 1.5 | F50: 1.5 | G50: 1.5 | H50: 1.5 | P50: 1.5
B51: Protein Supplement
C52: Cows | D52: cwt | N52: 225 | O52: 225
B53: Private Range
C54: Cows | D54: AUM | I54: 250 | J54: 250 | K54: 250 | L54: 250 | R54: =SUM(E54:P54) -> 1000 | S54: =SUM(R54:R57) -> 1212
C55: Replacement Heifers | D55: AUM | I55: 43 | J55: 43 | K55: 43 | L55: 43 | R55: 172
C56: Bulls | D56: AUM | I56: 10 | J56: 10 | K56: 10 | L56: 10 | R56: 40
B57: Private Pasture | R57: 0
C58: Cows | D58: AUM | M58: 250 | N58: 250 | R58: 500 | S58: =SUM(R58:R62) -> 630
C59: Replacement Heifers | D59: AUM | M59: 43 | N59: 43 | R59: 86
C60: Bulls | D60: AUM | M60: 10 | N60: 10 | R60: 20
C61: Horses | D61: AUM | I61: 4 | J61: 4 | K61: 4 | L61: 4 | M61: 4 | N61: 4 | R61: 24
B62: Crop Aftermath | R62: 0
C63: Cows | D63: AUM | O63: 250 | R63: 250 | S63: =SUM(R63:R66) -> 307
C64: Replacement Heifers | D64: AUM | O64: 43 | R64: 43
C65: Bulls | D65: AUM | O65: 10 | R65: 10
C66: Horses | D66: AUM | O66: 4 | R66: 4
B67: Salt/Mineral | D67: cwt | E67: 5 | F67: 5 | G67: 5 | H67: 5 | I67: 5 | J67: 5 | K67: 5 | L67: 5 | M67: 5 | N67: 5 | O67: 5 | R67: 55
R68: 0
C71: Daily Feed Requirements by Livestock Category (lb fed/head/day)
C72: Livestock Category | D72: Alfalfa - Grass Hay (lb) | E72: Alfalfa Hay (lb) | F72: Protein Supplement (lb) | G72: No. of Days
C75: Replacement Heifers | E75: 20 | G75: 150
C76: Cows | D76: 35 | G76: 150
C77: Cows | F77: 3 | G77: 60
C78: Bulls | D78: 40 | G78: 150
C79: Horses | D79: 25 | G79: 150

Sheet Investment
B2: Table 4: Investment Summary. | I2: CCB-CC8-21
D3: Total Value | E3: Salvage/Cull Value | F3: Livestock Share | G3: Useful Life | H3: Annual Taxes & Insurance | I3: Annual Capital Recovery | J3: 1
B5: Buildings, Improvements | K5: Interest/Discount Rate
B6: and Equipment | K6: 0.0506
C7: Fencing | D7: 40000 | E7: 0 | F7: 100 | G7: 25 | H7: =D7*0.0036 -> 144 | I7: =(D7-E7)*0.071 -> 2840
C8: Working Corrals & Pens | D8: 15000 | E8: 3000 | F8: 100 | G8: 30 | H8: 54 | I8: =(D8-E8)*0.065 -> 780
C9: Pannels | D9: 2000 | E9: 1000 | F9: 100 | G9: 15 | H9: 7.2 | I9: =(D9-E9)*0.096 -> 96
C10: Barn | D10: 20000 | E10: 3000 | F10: 100 | G10: 30 | H10: 72 | I10: =(D10-E10)*0.065 -> 1105
C11: Hay Shed | D11: 30000 | E11: 5000 | F11: 100 | G11: 30 | H11: 108 | I11: =(D11-E11)*0.065 -> 1625
C12: Feed Wagon | D12: 2000 | E12: 500 | F12: 100 | G12: 10 | H12: 7.2 | I12: =(D12-E12)*0.13 -> 195
C13: Calf Table | D13: 1500 | E13: 500 | F13: 100 | G13: 10 | H13: 5.4 | I13: =(D13-E13)*0.13 -> 130
C14: Squeeze Chute | D14: 3500 | E14: 1000 | F14: 100 | G14: 10 | H14: 12.6 | I14: =(D14-E14)*0.13 -> 325
C15: Vet Equipment | D15: 1500 | E15: 0 | F15: 100 | G15: 15 | H15: 5.4 | I15: =(D15-E15)*0.097 -> 145.5
C16: Stock Trailer | D16: 12000 | E16: 1000 | F16: 100 | G16: 20 | H16: 43.2 | I16: =(D16-E16)*0.081 -> 891
B18: Total | D18: =SUM(D7:D16) -> 127500 | H18: =SUM(H7:H16) -> 459 | I18: =SUM(I7:I16) -> 8132.5
B21: Purchased Livestock
C22: Horses | D22: =2500*4 -> 10000 | E22: =600*4 -> 2400 | F22: 100 | G22: 10 | I22: =(D22-E22)*0.13 -> 988
C23: Bulls | D23: =10*4000 -> 40000 | E23: ='CC8-Budget'!D12*'CC8-Budget'!J12*10 -> 15840 | F23: 100 | G23: 4 | I23: =(D23-E23)*0.282 -> 6813.12
B25: Total | D25: =SUM(D22:D23) -> 50000 | I25: =SUM(I22:I23) -> 7801.12
B28: Retained Livestock
C29: Beef Replacement Heifers | D29: =1200*43 -> 51600 | E29: =43*'CC8-Budget'!D13*'CC8-Budget'!J13 -> 40936 | F29: 100 | I29: =D29*$K$6 -> 2610.96 | J29: 2
C30: Beef Cows | D30: =250*1500 -> 375000 | E30: =250*'CC8-Budget'!D11*'CC8-Budget'!J11 -> 217750 | F30: 100 | I30: =D30*$K$6 -> 18975 | J30: 2
B32: Total | D32: =SUM(D29:D30) -> 426600 | I32: =SUM(I29:I30) -> 21585.96
B35: Machinery and Vehicles
C36: 80 hpTractor with Loader | D36: 40000 | E36: 8500 | F36: 100 | G36: 18 | H36: =D36*0.0036 -> 144 | I36: =(D36-E36)*0.086 -> 2709
C37: Pickup 4X4 3/4 ton | D37: 20000 | E37: 5000 | F37: 100 | G37: 10 | H37: =D37*0.0094 -> 188 | I37: =(D37-E37)*0.13 -> 1950
C38: Pickup 4X4 1 ton | D38: 25000 | E38: 4000 | F38: 100 | G38: 8 | H38: =D38*0.0094 -> 235 | I38: =(D38-E38)*0.155 -> 3255
C39: ATV | D39: 4000 | E39: 1000 | F39: 100 | G39: 10 | H39: =D39*0.0094 -> 37.6 | I39: =(D39-E39)*0.13 -> 390
B41: Total | D41: =SUM(D36:D39) -> 89000 | H41: =SUM(H36:H38) -> 567 | I41: =SUM(I36:I40) -> 8304
B44: 1 | C44: Annual capital recovery is the method of calculating depreciation and interest recommended by the National Task Force
C45: on Commodity Costs and Returns Measurement Methods.
B46: 2 | C46: Interest on average investment.

Sheet Vet
C1: Veterinary Expenses
K3: Monthly Allocation
A4: Vaccine | D4: Number of Head | E4: Dosage | F4: Price | H4: Units | I4: $/Unit | J4: Quantity | K4: Jan | L4: Feb | M4: Mar | N4: Apr | O4: May | P4: Jun | Q4: Jul | R4: Aug | S4: Sep | T4: Oct | U4: Nov | V4: Dec | W4: Total
C5: Steer Calves | D5: 112
A6: Inforce 3 | C6: Respiratory Viral | E6: 50 | F6: 77.49 | H6: dose | I6: =F6/E6 -> 1.5498 | M6: 1 | U6: 1 | W6: =SUM(K6:V6)*$D$5*I6 -> 347.1552
A7: Ultrabac 8 | C7: 8 Way | E7: 50 | F7: 42.29 | H7: dose | I7: =F7/E7 -> 0.8458 | M7: 1 | U7: 1 | W7: =SUM(K7:V7)*$D$5*I7 -> 189.4592
C8: Heifer Calves | D8: 113
A9: Inforce 3 | C9: Respiratory Viral | E9: 50 | F9: 77.49 | H9: dose | I9: 1.5498 | M9: 1 | U9: 1 | W9: =SUM(K9:V9)*$D$8*I9 -> 350.2548
A10: Ultrabac 8 | C10: 8 Way | E10: 50 | F10: 42.29 | H10: dose | I10: 0.8458 | M10: 1 | U10: 1 | W10: =SUM(K10:V10)*$D$8*I10 -> 191.1508
C11: Bangs | E11: 1 | F11: 4 | H11: dose | I11: 4 | M11: 1 | W11: =SUM(K11:V11)*$D$8*I11 -> 452
C12: Cows | D12: 250
A13: Pyrfamid 5 | C13: Respiratory Viral | E13: 50 | F13: 65.29 | H13: dose | I13: 1.3058 | U13: 1 | W13: =SUM(K13:V13)*$D$12*I13 -> 326.45
A14: Vira Shield 6 + VL5 | C14: Pregnancy Viral | E14: 50 | F14: 127.29 | H14: dose | I14: 2.5458 | U14: 1 | W14: =SUM(K14:V14)*$D$12*I14 -> 636.45
A15: Clean-Up 2 | C15: Pour-On | E15: 384 | F15: 432.5 | H15: dose | I15: 1.126302083 | U15: 1 | W15: =SUM(K15:V15)*$D$12*I15 -> 281.5755208
A16: PYthon2 | C16: Fly Tags | E16: 100 | F16: 197.39 | H16: head | I16: 1.9739 | N16: 1 | W16: =SUM(K16:V16)*$D$12*I16 -> 493.475
C17: Preg. Check | E17: 1 | F17: 4 | H17: head | I17: 4 | N17: 1 | W17: 1000
C18: Replacement Heifers | D18: 43
A19: Pyramid 5 | C19: Respiratory Viral | E19: 50 | F19: 65.29 | H19: dose | I19: 1.3058 | N19: 1 | U19: 1 | W19: =SUM(K19:V19)*$D$18*I19 -> 112.2988
A20: Vira Shield 6 + VL5 | C20: Pregnancy Viral | E20: 50 | F20: 127.29 | H20: dose | I20: 2.5458 | U20: 1 | W20: =SUM(K20:V20)*$D$18*I20 -> 109.4694
A21: Clean-Up 2 | C21: Pour-On | E21: 384 | F21: 432.5 | H21: dose | I21: 1.126302083 | N21: 1 | W21: 48.43098958
A22: Python 2 | C22: Fly Tags | E22: 100 | F22: 197.39 | H22: head | I22: 1.9739 | N22: 1 | W22: 84.8777
C23: Preg. Check | E23: 1 | F23: 4 | H23: head | I23: 4 | N23: 1 | W23: 172
C24: Bulls | D24: 10
A25: Pyramid 5 | C25: Respiratory Viral | E25: 50 | F25: 65.29 | H25: dose | I25: 1.3058 | N25: 1 | W25: =SUM(K25:V25)*$D$24*I25 -> 13.058
A26: Ultrabac 8 | C26: 8 Way | E26: 50 | F26: 42.29 | H26: dose | I26: 0.8458 | N26: 1 | W26: =SUM(K26:V26)*$D$24*I26 -> 8.458
A27: Clean-Up 2 | C27: Pour-On | E27: 384 | F27: 432.5 | H27: dose | I27: 1.126302083 | N27: 1 | W27: 11.26302083
C28: Semen/Trich Test | E28: 1 | F28: 65 | H28: head | I28: 65 | N28: 1 | W28: 650
A29: Python 2 | C29: Fly Tags | E29: 100 | F29: 197.39 | H29: head | I29: 1.9739 | N29: 1 | W29: 19.739
V30: Total | W30: =SUM(W6:W29) -> 5497.565431
W32: =W30*1.25 -> 6871.956789
